bitfinex/quotes_ETHUSD_20250430
["timestamp","ask_amount","ask_price","bid_price","bid_amount"]
[1746044653820,7.27382836,1806.2,1806.0,5.53709649]
[1746044654021,6.04,1806.2,1806.0,5.53690911]
[1746044654226,11.57661428,1806.2,1805.9,10.56139392]
[1746044654533,11.57688447,1806.1,1805.9,5.024]
[1746044654735,11.57688447,1806.1,1805.8,10.56161285]
[1746044655319,11.57688447,1806.1,1805.8,5.024]
[1746044655521,1.15768845,1806.0,1805.8,10.56148218]
[1746044655749,6.04,1806.1,1805.8,16.0989796]
[1746044656145,6.04,1806.1,1806.0,5.53709856]
[1746044657862,6.04,1806.1,1805.9,5.5372179]
[1746044658938,6.8041,1806.1,1805.9,5.5372179]
[1746044659143,6.04,1806.1,1805.9,5.5372179]
[1746044659377,6.04,1806.1,1806.0,5.53709856]
[1746044660180,6.04,1806.1,1806.0,6.35129856]
[1746044660482,6.04,1806.4,1806.0,7.54014547]
[1746044660651,6.04,1806.4,1806.2,5.53627041]
[1746044661889,6.04,1806.4,1806.2,10.56127041]
[1746044662077,6.04,1806.4,1806.3,5.53617892]
[1746044662975,6.04,1806.4,1806.3,6.28707892]
[1746044663206,6.04,1806.4,1806.3,7.97191385]
[1746044663597,6.04,1806.4,1806.3,8.77191385]
[1746044664313,6.04,1806.8,1806.7,5.53495322]
[1746044665190,6.04,1807.0,1806.8,5.5346287]
[1746044665615,9.04,1807.1,1807.0,5.53403431]
[1746044665918,6.04,1807.1,1806.9,10.54730554]
[1746044666213,6.04,1807.1,1806.9,10.5473235]
[1746044667110,3.4632,1807.2,1807.1,5.53372807]
[1746044667427,3.4632,1807.2,1807.1,6.35582807]
[1746044668080,3.4632,1807.2,1807.1,7.15582807]
[1746044670732,3.4632,1807.2,1807.1,11.34572807]
[1746044670935,3.4632,1807.2,1807.1,13.03369089]
[1746044671623,3.4632,1807.2,1807.1,12.23369089]
[1746044672199,3.4632,1807.2,1807.1,5.012]
[1746044673319,3.4632,1807.2,1807.1,10.54572807]
[1746044673709,3.4632,1807.2,1807.1,5.012]
[1746044673917,3.4632,1807.2,1807.1,10.54572807]
[1746044675403,3.4632,1807.2,1807.1,5.012]
[1746044678450,3.4632,1807.2,1806.4,5.011]
[1746044678451,5.53487902,1806.8,1806.4,5.011]
[1746044678605,5.53510813,1806.7,1806.4,5.011]
[1746044678945,5.53507133,1806.7,1806.4,5.011]
[1746044679314,11.57477497,1806.8,1806.4,10.54682631]
[1746044679505,6.04,1806.8,1806.4,6.70119057]
[1746044679705,6.04,1806.8,1806.7,5.53495322]
[1746044680916,4.2897,1807.2,1806.9,5.53417657]
[1746044681122,4.2897,1807.2,1806.9,5.53413339]
[1746044681322,9.82325428,1807.2,1806.8,10.54549968]
[1746044681514,6.51605635,1807.1,1806.8,10.54549968]
[1746044682148,6.51605635,1807.1,1806.8,5.011]
[1746044682552,4.2897,1807.2,1807.0,5.53403431]
[1746044682731,3.4632,1807.2,1807.0,5.53380704]
[1746044683713,3.4632,1807.2,1807.1,5.53372807]
[1746044684652,3.4632,1807.2,1807.0,5.53380704]
[1746044685145,3.4632,1807.2,1807.1,5.53372807]
[1746044689664,3.4632,1807.2,1807.1,6.33372807]
[1746044689842,3.4632,1807.2,1807.1,6.38906155]
[1746044690030,3.4632,1807.2,1807.1,7.12002807]
[1746044694772,6.8209,1807.8,1807.1,7.12002807]
[1746044694773,6.09,1807.9,1807.7,5.53189135]
[1746044694980,0.05,1807.9,1807.8,11.92697449]
[1746044695504,0.05,1807.9,1807.8,7.71697449]
[1746044695678,0.05,1807.9,1807.8,0.8]
[1746044695878,0.05,1807.9,1807.6,4.999]
[1746044696123,12.3655462,1807.8,1807.3,5.53290298]
[1746044696414,12.3655462,1807.8,1807.4,5.53280239]
[1746044696986,6.8338,1807.8,1807.6,5.53209831]
[1746044697190,6.8338,1807.8,1807.6,5.53200599]
[1746044698113,7.52218,1807.8,1807.5,5.53235829]
[1746044698626,7.52218,1807.8,1807.5,5.5322763]
[1746044698829,6.8338,1807.8,1807.6,5.53192833]
[1746044700535,6.8338,1807.8,1807.5,6.33230272]
[1746044700927,6.8338,1807.8,1807.5,6.33228981]
[1746044701125,6.8338,1807.8,1807.6,5.53219738]
[1746044701788,6.8338,1807.8,1807.5,6.33242593]
[1746044701990,6.8338,1807.8,1807.6,5.53204122]
[1746044703397,6.8338,1807.8,1807.7,5.53189135]
[1746044703398,6.04,1807.8,1807.7,5.53189135]
[1746044703597,0.05,1807.9,1807.7,5.53189135]
[1746044703900,0.05,1807.9,1807.6,5.53204122]
[1746044704296,0.05,1807.9,1807.7,5.53176526]
[1746044704514,0.05,1807.9,1807.4,4.999]
[1746044704706,0.05,1807.9,1807.5,0.8]
[1746044704707,5.53219738,1807.6,1807.5,0.8]
[1746044704902,0.8261,1807.6,1807.1,4.998]
[1746044705232,6.04,1807.5,1807.2,5.53337253]
[1746044707427,6.04,1807.5,1807.1,4.998]
[1746044707587,5.53325644,1807.3,1807.1,4.998]
[1746044707787,6.04,1807.2,1806.9,5.53424748]
[1746044708025,6.04,1807.2,1807.0,5.53376686]
[1746044708838,6.04,1807.2,1807.1,5.53372807]
[1746044709041,6.04,1807.2,1807.0,5.53376686]
[1746044709399,6.04,1807.2,1807.0,11.06762054]
[1746044709732,6.04,1807.2,1807.0,5.53376686]
[1746044710792,6.04,1807.2,1807.1,5.53372807]
[1746044711902,6.04,1807.2,1806.9,10.53315627]
[1746044712442,6.04,1807.2,1807.0,5.53391391]
[1746044712732,6.04,1807.2,1806.9,16.0672905]
[1746044713105,0.7968,1807.1,1806.9,4.999]
[1746044713504,6.33061901,1807.1,1806.9,4.999]
[1746044713704,0.7968,1807.1,1806.8,5.5346078]
[1746044713933,5.53431047,1807.0,1806.6,10.53404574]
[1746044714319,5.53431047,1807.0,1806.6,10.53403847]
[1746044714495,7.56770015,1807.1,1806.7,5.53495293]
[1746044714691,5.53405679,1807.0,1806.7,5.53495293]
[1746044715098,7.56770015,1807.1,1806.7,5.53495293]
[1746044715503,5.53413355,1807.0,1806.6,10.53404055]
[1746044715927,5.53413355,1807.0,1806.6,4.999]
[1746044716128,0.7794,1806.8,1806.6,4.999]
[1746044716323,0.7794,1806.8,1806.2,12.12362007]
[1746044716324,5.53530396,1806.6,1806.3,4.999]
[1746044716640,5.53530396,1806.6,1806.3,10.53515253]
[1746044716961,5.53508115,1806.7,1806.3,10.53515253]
[1746044717150,5.53528909,1806.6,1806.3,10.53515253]
[1746044717551,5.53508115,1806.7,1806.3,10.53515253]
[1746044718762,5.53569943,1806.5,1806.3,4.999]
[1746044719874,5.53587245,1806.4,1806.3,4.999]
[1746044720082,0.7962,1806.3,1805.9,4.38722036]
[1746044720223,5.53661008,1806.2,1805.9,8.58722036]
[1746044720419,5.53661008,1806.2,1805.9,14.12460555]
[1746044720859,5.53661008,1806.2,1805.9,14.92460555]
[1746044721061,5.53661008,1806.2,1805.9,14.12460555]
[1746044721267,5.53661008,1806.2,1805.9,5.0]
[1746044721864,5.53685395,1806.1,1805.9,5.0]
[1746044722168,6.72352469,1806.2,1805.9,5.0]
[1746044722559,1.18691461,1806.2,1805.9,10.53737786]
[1746044722929,6.33251221,1806.3,1805.9,10.53737786]
[1746044723472,6.33251221,1806.3,1805.9,10.53728284]
[1746044723633,5.53660656,1806.2,1805.9,5.0]
[1746044724586,6.33251221,1806.3,1805.9,10.53736633]
[1746044724934,6.33251221,1806.3,1805.9,10.53721171]
[1746044725241,1.98305589,1806.3,1806.0,5.5368867]
[1746044725880,7.51934903,1806.3,1806.0,5.5368867]
[1746044726042,1.98305589,1806.3,1806.1,5.53676092]
[1746044726240,0.7962,1806.3,1806.1,5.53676092]
[1746044726762,0.7962,1806.3,1806.0,5.5368867]
[1746044727477,5.53663499,1806.2,1805.9,5.0]
[1746044727965,5.53663499,1806.2,1805.9,10.53738535]
[1746044728662,5.53663499,1806.2,1805.9,5.0]
[1746044728877,0.816,1806.0,1805.8,28.81363671]
[1746044729575,7.53955564,1806.2,1805.8,28.81350193]
[1746044730084,3.0,1806.3,1806.1,5.53676499]
[1746044730570,0.816,1806.5,1806.0,0.8177]
[1746044730778,9.35158917,1806.5,1806.2,5.5363067]
[1746044731309,3.0,1806.5,1806.3,5.53617874]
[1746044731707,3.0,1806.5,1806.4,0.21178114]
[1746044731875,7.53174653,1806.7,1806.4,0.21178114]
[1746044732076,1.9966281,1806.7,1806.4,5.74752482]
[1746044732298,1.9966281,1806.7,1806.5,5.53554547]
[1746044732299,0.8117,1806.7,1806.5,5.53554547]
[1746044732502,0.8117,1806.7,1806.5,0.22713081]
[1746044733102,6.34666268,1806.7,1806.5,0.22713081]
[1746044733433,6.34666268,1806.7,1806.4,5.53583539]
[1746044733609,6.34666268,1806.7,1806.6,0.22707524]
[1746044733818,1.99984223,1806.7,1806.5,0.22713081]
[1746044734121,5.53475961,1806.8,1806.6,0.22707524]
[1746044734324,0.8152,1806.9,1806.6,5.7622334]
[1746044734474,3.8152,1806.9,1806.6,5.76212827]
[1746044734884,9.34962685,1806.9,1806.6,0.22707524]
[1746044735114,3.8152,1806.9,1806.6,0.22707524]
[1746044735300,3.8152,1806.9,1806.6,5.76233405]
[1746044735614,3.8152,1806.9,1806.6,0.22707524]
[1746044735775,9.34955201,1806.9,1806.6,0.22707524]
[1746044735971,3.8152,1806.9,1806.6,5.76230883]
[1746044736391,3.8152,1806.9,1806.6,5.76218347]
[1746044736587,3.8152,1806.9,1806.6,6.89194057]
[1746044736788,0.8152,1806.9,1806.7,5.53494769]
[1746044737230,0.8152,1806.9,1806.8,0.2249948]
[1746044737582,0.8152,1806.9,1806.6,5.53508588]
[1746044737787,0.8152,1806.9,1806.8,0.22472135]
[1746044738001,0.8152,1806.9,1806.7,0.22477691]
[1746044738202,0.8152,1806.9,1806.8,0.22472135]
[1746044738577,0.8152,1806.9,1806.6,5.53508588]
[1746044738858,0.8152,1806.9,1806.7,0.22477691]
[1746044739151,0.8152,1806.9,1806.6,5.53505564]
[1746044739318,0.8152,1806.9,1806.7,5.75662144]
[1746044740053,8.53405849,1807.0,1806.7,0.22176795]
[1746044740255,10.02017712,1807.0,1806.7,0.22176795]
[1746044740455,4.48611863,1807.0,1806.7,0.22176795]
[1746044740621,4.48611863,1807.0,1806.7,5.53475686]
[1746044740822,4.48611863,1807.0,1806.8,0.22171239]
[1746044741035,10.0202066,1807.0,1806.8,0.22171239]
[1746044741235,4.48611863,1807.0,1806.8,0.22171239]
[1746044741457,3.0,1807.0,1806.7,5.53490885]
[1746044741659,0.7933,1807.1,1806.9,5.75597642]
[1746044741958,3.0,1807.2,1806.9,5.75597642]
[1746044742278,8.53346763,1807.2,1806.9,0.22165684]
[1746044742423,3.0,1807.2,1806.9,0.22165684]
[1746044742624,3.0,1807.2,1806.8,5.53442439]
[1746044742866,3.0,1807.2,1807.0,0.22089037]
[1746044743076,3.92892917,1807.2,1806.9,5.75512378]
[1746044743601,3.0,1807.2,1806.9,5.75512378]
[1746044743780,6.29138439,1807.5,1807.0,5.53375033]
[1746044744091,0.7587,1807.5,1807.2,5.53335917]
[1746044744276,3.7587,1807.5,1807.1,5.75433224]
[1746044744480,3.7587,1807.5,1807.3,0.22072376]
[1746044744796,3.7587,1807.5,1807.1,5.53349741]
[1746044744999,3.7587,1807.5,1807.4,0.22066824]
[1746044745195,4.72845356,1807.5,1807.2,5.53333147]
[1746044745381,3.7587,1807.5,1807.4,0.22066824]
[1746044745698,3.0,1807.5,1807.3,5.53306126]
[1746044745854,0.7534,1807.7,1807.4,5.75337544]
[1746044746096,6.33488853,1807.9,1807.5,5.53227321]
[1746044746298,0.05,1807.9,1807.6,6.50138473]
[1746044747241,0.7948,1807.7,1807.6,0.21820642]
[1746044747548,0.7948,1807.7,1807.4,10.52272966]
[1746044747699,6.32691119,1807.7,1807.5,0.21820728]
[1746044748039,5.53278417,1807.5,1807.2,4.99]
[1746044748246,6.32778703,1807.4,1807.2,4.99]
[1746044748406,0.7948,1807.4,1807.3,0.17533948]
[1746044748803,6.32760956,1807.4,1807.3,0.17533948]
[1746044749303,0.7948,1807.4,1807.3,0.17533948]
[1746044749932,6.32760956,1807.4,1807.3,0.17533948]
[1746044750111,0.7948,1807.4,1807.3,0.17533948]
[1746044750731,6.32760956,1807.4,1807.3,0.17533948]
[1746044750932,0.7948,1807.4,1807.3,0.17533948]
[1746044751430,3.55327842,1807.5,1807.3,0.17533948]
[1746044751803,3.0,1807.5,1807.3,0.17533948]
[1746044752339,3.0,1807.5,1807.3,5.70840609]
[1746044752518,3.0,1807.5,1807.3,0.17533948]
[1746044752700,5.53190558,1807.7,1807.4,5.53261997]
[1746044752896,5.53190558,1807.7,1807.3,5.70831004]
[1746044753100,5.53190558,1807.7,1807.3,6.54091004]
[1746044753433,5.53190558,1807.7,1807.3,12.07383988]
[1746044753677,5.53190558,1807.7,1807.3,1.00793948]
[1746044753858,7.07017467,1807.7,1807.3,6.54085085]
[1746044754054,9.85065403,1807.8,1807.5,5.53240458]
[1746044754055,0.7689,1807.8,1807.5,5.53240458]
[1746044754448,9.30051378,1807.8,1807.4,5.53264486]
[1746044754660,9.30051378,1807.8,1807.6,0.17517293]
[1746044754874,3.7689,1807.8,1807.5,5.70773115]
[1746044755072,9.30048535,1807.8,1807.7,0.17511742]
[1746044755248,5.25708584,1807.8,1807.6,0.17517293]
[1746044755452,9.30048535,1807.8,1807.7,0.17511742]
[1746044755774,9.30048535,1807.8,1807.5,5.53241047]
[1746044756071,3.7689,1807.8,1807.6,0.17517293]
[1746044756864,9.30066259,1807.8,1807.6,0.17517293]
[1746044757078,3.7689,1807.8,1807.5,5.5323667]
[1746044757253,3.7689,1807.8,1807.7,0.17511742]
[1746044757454,3.7689,1807.8,1807.6,0.17517293]
[1746044757654,3.7689,1807.8,1807.7,0.17511742]
[1746044757884,0.7689,1807.8,1807.7,0.17511742]
[1746044758069,0.7689,1807.8,1807.5,5.53232374]
[1746044758378,5.58145923,1807.9,1807.6,0.17517293]
[1746044758554,7.66540468,1807.9,1807.6,0.17517293]
[1746044758875,0.05,1807.9,1807.6,6.49537576]
[1746044759084,0.05,1807.9,1807.7,5.53189123]
[1746044759379,0.05,1807.9,1807.8,0.17506193]
[1746044759747,0.05,1807.9,1807.6,6.32020283]
[1746044759945,0.05,1807.9,1807.7,5.70690093]
[1746044760281,0.05,1807.9,1807.7,0.17511742]
[1746044761302,0.05,1807.9,1807.7,5.70700833]
[1746044761605,5.58134548,1807.9,1807.7,0.17511742]
[1746044761809,0.98392605,1807.9,1807.7,0.17511742]
[1746044761968,6.51539152,1807.9,1807.7,0.17511742]
[1746044762364,0.98392605,1807.9,1807.7,0.17511742]
[1746044762594,0.05,1807.9,1807.7,0.17511742]
[1746044762899,0.05,1807.9,1807.7,5.70691324]
[1746044763399,0.05,1807.9,1807.7,0.17511742]
[1746044764002,0.05,1807.9,1807.7,5.70689983]
[1746044764499,0.05,1807.9,1807.8,5.53158535]
[1746044764697,0.05,1807.9,1807.7,6.49555049]
[1746044765002,0.05,1807.9,1807.8,0.17489834]
[1746044765369,0.05,1807.9,1807.8,5.70648369]
[1746044768703,0.05,1807.9,1807.8,6.51018369]
[1746044770627,0.05,1807.9,1807.8,6.56548988]
[1746044771522,0.05,1807.9,1807.8,7.36548988]
[1746044771694,0.05,1807.9,1807.8,8.82525239]
[1746044772029,0.05,1807.9,1807.8,8.7699462]
[1746044772227,0.05,1807.9,1807.8,8.82524177]
[1746044772432,0.05,1807.9,1807.8,8.7699462]
[1746044772631,0.05,1807.9,1807.8,8.82524421]
[1746044772837,0.05,1807.9,1807.8,8.7699462]
[1746044773041,0.05,1807.9,1807.8,13.7459462]
[1746044773401,0.05,1807.9,1807.8,8.7699462]
[1746044773599,0.05,1807.9,1807.8,12.28618369]
[1746044776305,5.9374382,1808.7,1807.8,12.28618369]
[1746044776306,0.05,1808.9,1807.9,0.7719]
[1746044776505,0.05,1808.9,1808.7,5.5286722]
[1746044776744,0.05,1808.9,1808.8,0.16796571]
[1746044777107,0.05,1808.9,1808.8,5.69649291]
[1746044777550,0.05,1808.9,1808.8,6.81900567]
[1746044778065,0.05,1808.9,1808.8,0.16796571]
[1746044778405,0.05,1808.9,1808.6,11.85790296]
[1746044778604,0.05,1808.9,1808.7,5.6968276]
[1746044779552,0.05,1808.9,1808.7,5.69683228]
[1746044780106,0.05,1808.9,1808.7,0.16802115]
[1746044780343,0.05,1808.9,1808.8,5.5285272]
[1746044780548,0.05,1808.9,1808.8,5.69649291]
[1746044780922,0.05,1808.9,1808.8,5.14196571]
[1746044782108,15.88446247,1808.9,1808.8,0.16796571]
[1746044782308,5.52918676,1808.6,1808.4,4.974]
[1746044782611,5.52908723,1808.7,1808.5,0.16459082]
[1746044783020,5.52913856,1808.6,1808.5,0.16459082]
[1746044783351,5.52895752,1808.7,1808.5,0.16459082]
[1746044784016,5.52869998,1808.8,1808.5,0.16459082]
[1746044784357,5.52869998,1808.8,1808.5,5.69403362]
[1746044784909,5.52869998,1808.8,1808.5,0.16459082]
[1746044786055,3.8376,1808.9,1808.5,0.16459082]
[1746044786255,6.34653856,1808.6,1808.5,0.16459082]
[1746044786961,9.34653856,1808.6,1808.5,0.16459082]
[1746044787143,5.5298403,1808.4,1808.1,4.974]
[1746044787324,5.5298403,1808.4,1808.2,0.12533489]
[1746044787655,5.5298403,1808.4,1808.0,5.53074588]
[1746044787814,5.5298403,1808.4,1808.3,0.12620434]
[1746044788016,5.5298403,1808.4,1808.0,5.53074588]
[1746044788255,5.5298403,1808.4,1808.1,5.65693636]
[1746044788559,5.5298403,1808.4,1808.1,0.12631528]
[1746044788932,5.52949169,1808.5,1808.1,11.18747363]
[1746044789253,5.52949169,1808.5,1808.1,5.65681927]
[1746044789451,5.52949169,1808.5,1808.1,5.6567835]
[1746044789620,5.52949169,1808.5,1808.1,11.18726135]
[1746044789812,5.52949169,1808.5,1808.1,6.77550964]
[1746044790523,5.52976888,1808.4,1808.1,1.24504142]
[1746044791035,5.52976888,1808.4,1808.1,6.77564097]
[1746044791482,11.0597935,1808.4,1808.1,0.12631528]
[1746044791693,5.53006403,1808.3,1808.1,0.12631528]
[1746044792197,6.36276168,1808.2,1808.1,0.12631528]
[1746044792395,6.36276168,1808.2,1807.9,5.53127649]
[1746044792695,6.36276168,1808.2,1808.0,0.12767682]
[1746044793585,0.8324,1808.2,1808.0,0.12767682]
[1746044793987,9.99914345,1808.2,1808.0,0.12767682]
[1746044794288,6.29571887,1807.8,1807.6,4.961]
[1746044794447,6.29518735,1808.0,1807.6,5.53207081]
[1746044794653,6.29518735,1808.0,1807.7,0.11010372]
[1746044795182,6.29518735,1808.0,1807.7,5.64199189]
[1746044795503,5.53084381,1808.1,1807.8,5.53157016]
[1746044795650,5.53084381,1808.1,1807.7,7.58518654]
[1746044795850,5.53113714,1808.0,1807.9,0.11097155]
[1746044796050,5.53113714,1808.0,1807.8,0.11102704]
[1746044796251,5.53113714,1808.0,1807.9,0.11097155]
[1746044796676,5.53113714,1808.0,1807.7,0.8258]
[1746044796996,5.53113714,1808.0,1807.8,0.11102704]
[1746044797149,5.53088573,1808.1,1807.8,0.11102704]
[1746044797353,5.53103784,1808.0,1807.8,0.11102704]
[1746044797996,11.06183004,1808.1,1807.8,0.11102704]
[1746044798165,5.53100896,1808.0,1807.8,0.11102704]
[1746044798695,5.53119444,1808.0,1807.6,11.06398978]
[1746044798956,5.53119444,1808.0,1807.9,0.11146103]
[1746044799113,5.53119444,1808.0,1807.7,5.53186602]
[1746044799114,5.53102605,1808.0,1807.7,5.53186602]
[1746044799442,5.53066755,1808.1,1807.8,5.64307019]
[1746044799627,5.53066755,1808.1,1807.8,0.11151653]
[1746044799832,5.53066755,1808.1,1807.8,5.64309983]
[1746044801268,11.0605466,1808.3,1807.9,5.53123901]
[1746044801421,5.53040976,1808.2,1807.9,5.53123901]
[1746044801617,5.53040976,1808.2,1808.0,0.11140555]
[1746044802348,6.33693875,1808.6,1808.1,6.31241621]
[1746044802662,6.33693875,1808.6,1808.2,0.11042443]
[1746044802821,5.52944832,1808.5,1808.2,5.64076166]
[1746044803219,5.52944832,1808.5,1808.2,0.11042443]
[1746044803563,5.52944832,1808.5,1808.2,5.64076777]
[1746044804359,5.52944832,1808.5,1808.2,5.64075063]
[1746044804512,7.27063263,1808.6,1808.2,5.64077423]
[1746044804717,5.52958046,1808.5,1808.2,0.11042443]
[1746044805149,0.8078,1808.6,1808.3,5.52995607]
[1746044805351,6.33699582,1808.6,1808.2,5.64066782]
[1746044805660,6.33699582,1808.6,1808.3,0.11036896]
[1746044807525,6.33699582,1808.6,1808.3,5.64042226]
[1746044807716,6.33699582,1808.6,1808.3,0.11036896]
[1746044809461,6.33699582,1808.6,1808.3,5.64036429]
[1746044810231,0.8078,1808.6,1808.3,5.64036429]
[1746044810861,6.33696301,1808.6,1808.3,5.64036429]
[1746044811356,6.33696301,1808.6,1808.3,0.11036896]
[1746044811557,6.33696301,1808.6,1808.3,5.64041004]
[1746044811760,5.52895281,1808.7,1808.3,6.75729447]
[1746044812120,5.52895281,1808.7,1808.4,5.52965798]
[1746044812321,5.52895281,1808.7,1808.5,0.10906196]
[1746044813063,5.52895281,1808.7,1808.3,12.17678999]
[1746044813240,5.52895281,1808.7,1808.4,0.10911741]
[1746044813538,5.52895281,1808.7,1808.3,6.64691991]
[1746044813745,5.52918476,1808.6,1808.5,0.10906196]
[1746044813969,5.5298982,1808.4,1808.2,0.8]
[1746044814152,5.52944429,1808.5,1808.1,11.27435843]
[1746044814365,5.52944429,1808.5,1808.1,16.8048282]
[1746044814693,5.52944429,1808.5,1808.1,10.49245843]
[1746044814694,11.05915612,1808.5,1808.1,10.49245843]
[1746044814863,11.05915612,1808.5,1808.1,12.09478245]
[1746044815064,5.52944429,1808.5,1808.1,12.09478245]
[1746044815371,5.53036168,1808.2,1808.1,6.56432402]
[1746044815575,5.53091775,1808.1,1807.8,23.237]
[1746044815888,5.53091775,1808.1,1807.8,28.7685379]
[1746044816663,6.36111942,1808.2,1807.9,5.53123403]
[1746044817193,6.36111942,1808.2,1807.8,28.7685379]
[1746044817350,6.36111942,1808.2,1807.8,31.72530749]
[1746044817687,6.36111942,1808.2,1807.9,5.53126962]
[1746044817874,0.8306,1808.2,1807.9,5.53126962]
[1746044818078,6.35680747,1808.3,1807.9,5.53112587]
[1746044818279,5.52976186,1808.4,1808.1,5.5305665]
[1746044819088,5.52976186,1808.4,1808.0,6.28976349]
[1746044819290,5.52976186,1808.4,1808.1,5.53057846]
[1746044819680,5.52976186,1808.4,1808.0,11.82068235]
[1746044819993,5.53062905,1808.2,1807.8,5.721]
[1746044820292,6.35722905,1808.2,1807.8,16.78380741]
[1746044820667,6.35722905,1808.2,1807.8,11.25237582]
[1746044821054,0.8266,1808.2,1808.0,5.53088739]
[1746044821275,6.2810383,1808.4,1808.0,5.53082962]
[1746044821473,6.2810383,1808.4,1808.0,5.53077175]
[1746044821695,5.52949439,1808.5,1808.1,5.53051551]
[1746044821869,3.7512,1808.6,1808.2,6.35436902]
[1746044822189,5.52853216,1808.8,1808.4,5.52952301]
[1746044822401,5.52893267,1808.7,1808.3,5.52988112]
[1746044822692,5.52893267,1808.7,1808.3,5.52984374]
[1746044822895,5.52893267,1808.7,1808.3,11.05966079]
[1746044823204,5.52897882,1808.7,1808.3,5.52981705]
[1746044823688,5.52864226,1808.8,1808.3,5.52981705]
[1746044823904,5.52864226,1808.8,1808.4,5.52961172]
[1746044824394,5.52864226,1808.8,1808.4,5.52959678]
[1746044824818,5.52862701,1808.8,1808.4,5.52961346]
[1746044825117,5.52869625,1808.8,1808.4,5.5297233]
[1746044825296,5.52869625,1808.8,1808.4,5.52953198]
[1746044825470,5.52869625,1808.8,1808.4,6.83486725]
[1746044825671,5.52869625,1808.8,1808.4,12.36438636]
[1746044826100,5.52869625,1808.8,1808.4,6.83485438]
[1746044826260,5.52883871,1808.7,1808.4,1.30533527]
[1746044826457,5.52865871,1808.8,1808.5,0.8214]
[1746044826675,5.52852998,1808.8,1808.5,6.35073408]
[1746044827374,6.32954782,1808.9,1808.5,1.58700693]
[1746044827575,6.32954782,1808.9,1808.5,6.3507017]
[1746044828661,0.05,1808.9,1808.7,5.52868385]
[1746044828900,0.05,1808.9,1808.7,5.52863424]
[1746044829100,0.05,1808.9,1808.6,10.47892606]
[1746044829330,0.05,1808.9,1808.6,18.4908456]
[1746044829517,0.05,1808.9,1808.6,12.96188552]
[1746044830301,0.05,1808.9,1808.6,18.49081525]
[1746044830630,0.05,1808.9,1808.7,5.5288263]
[1746044831032,0.05,1808.9,1808.7,5.52863588]
[1746044831203,0.05,1808.9,1808.8,5.5285272]
[1746044832739,0.05,1808.9,1808.7,7.62477789]
[1746044833548,0.05,1808.9,1808.7,13.15343426]
[1746044833720,0.05,1808.9,1808.7,7.62477789]
[1746044834120,0.05,1808.9,1808.7,13.1534084]
[1746044834455,0.05,1808.9,1808.7,7.62477789]
[1746044835018,0.05,1808.9,1808.8,0.76247779]
[1746044835218,0.05,1808.9,1808.8,7.10340499]
[1746044836126,0.05,1808.9,1808.8,0.76247779]
[1746044836380,5.57831036,1808.9,1808.6,5.7429]
[1746044836539,5.57831036,1808.9,1808.6,4.95]
[1746044836540,5.57838758,1808.9,1808.6,4.95]
[1746044836739,5.52870225,1808.8,1808.6,4.95]
[1746044837630,5.52888866,1808.7,1808.4,0.8275]
[1746044837836,5.52888866,1808.7,1808.5,4.949]
[1746044838231,5.52913856,1808.6,1808.5,4.949]
[1746044839127,6.31378866,1808.7,1808.5,4.949]
[1746044840154,5.52913856,1808.6,1808.5,4.949]
[1746044840368,5.52913856,1808.6,1808.3,4.949]
[1746044840369,5.52954371,1808.5,1808.3,4.949]
[1746044840529,5.52913856,1808.6,1808.3,4.949]
[1746044840730,5.52960437,1808.5,1808.2,4.949]
[1746044840931,5.52960437,1808.5,1808.2,10.47933157]
[1746044841241,5.52960437,1808.5,1808.2,4.949]
[1746044841442,5.5293125,1808.6,1808.2,10.47934363]
[1746044842172,11.0587073,1808.6,1808.2,10.47934363]
[1746044842327,5.5293125,1808.6,1808.2,13.90753046]
[1746044842766,6.31389659,1808.7,1808.2,13.90753046]
[1746044842767,5.52994143,1808.4,1808.2,4.949]
[1746044842943,5.52987676,1808.4,1808.2,4.949]
[1746044843143,5.53005585,1808.3,1808.2,4.949]
[1746044844380,6.29220776,1808.5,1808.2,4.949]
[1746044844581,5.5299127,1808.4,1808.2,4.949]
[1746044845434,6.29220776,1808.5,1808.2,4.949]
[1746044845782,5.52990392,1808.4,1808.2,4.949]
[1746044846479,5.53005585,1808.3,1808.2,4.949]
[1746044846634,5.52990392,1808.4,1808.2,4.949]
[1746044847133,5.53005585,1808.3,1808.2,4.949]
[1746044847336,5.53089634,1808.1,1807.9,4.949]
[1746044847558,11.62089634,1808.1,1807.9,4.949]
[1746044848972,6.09,1808.1,1807.9,4.949]
[1746044849646,11.62069193,1808.1,1807.9,4.949]
[1746044849845,6.09,1808.1,1807.9,6.76704369]
[1746044850248,6.09,1808.1,1807.9,1.81804369]
[1746044850434,5.53108319,1808.0,1807.7,0.77]
[1746044850631,12.40961234,1808.1,1807.7,7.10177751]
[1746044850878,17.94056449,1808.1,1807.7,7.10177751]
[1746044851042,5.53103924,1808.0,1807.7,6.33177751]
[1746044851663,6.8788,1808.1,1807.7,6.33167872]
[1746044851664,12.40967487,1808.1,1807.7,6.33167872]
[1746044851842,12.40967487,1808.1,1807.8,5.53153757]
[1746044853177,12.40967487,1808.1,1807.7,8.48579115]
[1746044853775,5.53103543,1808.0,1807.7,8.48579115]
[1746044853983,5.531343,1807.9,1807.6,23.209]
[1746044854141,5.531343,1807.9,1807.6,28.74115675]
[1746044854341,5.53128003,1807.9,1807.6,28.74115675]
[1746044854539,5.53128003,1807.9,1807.6,29.54115675]
[1746044854746,17.15231958,1808.0,1807.6,29.54115675]
[1746044854957,5.53131738,1807.9,1807.6,28.74115675]
[1746044855571,5.53131738,1807.9,1807.6,23.209]
[1746044855780,11.06282972,1807.9,1807.6,23.209]
[1746044855964,5.53131738,1807.9,1807.6,23.209]
[1746044856483,5.53131738,1807.9,1807.6,28.74115477]
[1746044858789,17.15231502,1808.0,1807.6,28.74108104]
[1746044858953,6.09,1808.7,1808.2,0.8218]
[1746044859281,5.5292527,1808.6,1808.2,6.35193311]
[1746044859440,5.5292527,1808.6,1808.3,5.52998721]
[1746044859845,5.52895795,1808.7,1808.3,5.52998721]
[1746044860045,5.52931351,1808.6,1808.2,6.35193311]
[1746044860362,5.52931351,1808.6,1807.9,10.46914367]
[1746044860363,3.21742286,1808.5,1807.9,10.46914367]
[1746044860563,5.52989868,1808.4,1807.9,10.46914367]
[1746044860763,5.52989868,1808.4,1808.0,5.53084581]
[1746044860963,11.0599137,1808.4,1808.0,5.53084581]